Cogmind - Beta 14 @@@ ROGUE MODE // 2025.05.03 @ 11:01:33 Player: Zaros426 Result: Destroyed by H-77 Assassin with Coil Gun Performance ------------- Evolutions (6) 3000 Regions Visited (27) 5400 Robots Destroyed (488) 2440 Value Destroyed (17590) 17590 Prototype IDs (46) 920 Alien Tech Used (0) 0 Bonus (4155) 4155 TOTAL SCORE: 33505 Bonus ------- High Alert Combat Kills 1566 Follower Combat Kills 598 Entered Garrisons 400 Network Hubs Disabled 600 Met Data Miner 300 Met Imprinter 300 Acquired ECA 300 Met R17 at Cetus 500 Friendly Fire -409 Cogmind --------- Core Integrity 0/1150 Matter 152/300 Energy 64/100 System Corruption 6% Temperature Cool (0) Movement Core (50) Location -4/Factory Parts ------- > --- POWER (2) -------- (None) > --- PROPULSION (4) --- (None) > --- UTILITY (7) ------ (None) > --- WEAPON (6) ------- (None) > --- INVENTORY (5) ---- Terrain Scanner Advanced Transmission Jammer Advanced Variable Charge Gun GAL Module Peak State ------------ > --- POWER ------------ Reinforced Fission Core Quantum Reactor > --- PROPULSION ------- Centrium Heavy Treads Centrium Heavy Treads > --- UTILITY ---------- Improved Cooling System Huge Storage Unit Enhanced Optical Array Advanced Targeting Computer Core Analyzer Centrium Medium Armor Plating Centrium Medium Armor Plating > --- WEAPON ----------- Advanced Variable Charge Gun Advanced Variable Charge Gun Advanced KE Penetrator Advanced KE Penetrator > --- INVENTORY -------- Centrium Heavy Treads Advanced Heat Sink Compact Battery Advanced Matter Compressor Improved Trap Scanner Advanced Terrain Scan Processor Encrypted Comm Array Transmission Jammer Advanced ECM Suite Experimental Utility Shielding Experimental Utility Shielding Centrium Medium Armor Plating Advanced Trap Extractor Drone Bay Mini Drone Bay Hacking Drone Bay Tesla Rifle Tesla Rifle Long-range Proton Cannon Enhanced Gauss Cannon Enhanced Gauss Cannon Improved Proton Missile Launcher Improved Datajack GAL Module [Rating: 132] Favorites ----------- Power Improved Deuterium Engine Engine Improved Deuterium Engine Power Core Light Fission Core Reactor Quantum Reactor Propulsion Light Treads Treads Light Treads Leg Carbon-fiber Leg Wheel Wheel Hover Unit Combat Airjet Flight Unit Improved VTOL Module Utility Huge Storage Unit Device Advanced Shield Generator Storage Huge Storage Unit Processor Advanced Targeting Computer Hackware Hacking Suite Protection Medium Armor Plating Weapon EM Pulse Cannon Energy Gun Pulse Rifle Energy Cannon EM Pulse Cannon Ballistic Gun Improved Assault Rifle Ballistic Cannon Enhanced Gauss Cannon Launcher Rocket Array Special Weapon Mining Laser Impact Weapon Powered Hammer Slashing Weapon Falx Piercing Weapon CR-A16's Pointy Stick Special Melee Weapon Improved Datajack Build | -11 -10 -10 -9 -9 -9 -8 -8 -8 -8 -8 -8 -7 -7 -7 -7 -6 -6 -6 -6 -6 -5 -5 -5 -5 -5 -5 -4 ------- Run | Yrd Mat Min Mat Min Exi Min Mat Gar Mat Gar Mat Fac Low Low Zio Pro Fac Low Low Dat Pro Fac Ext Cet Arc Hub Fac Slots Evolved 12 | . . . 2 . . . 2 . . . . 2 . . . . 2 . . . . 2 . . . . 2 Power 1 | . . . . . . . . . . . . 1 . . . . . . . . . . . . . . . Propulsion 2 | . . . . . . . 1 . . . . . . . . . 1 . . . . . . . . . . Utility 5 | . . . 2 . . . . . . . . 1 . . . . . . . . . 2 . . . . . Weapon 4 | . . . . . . . 1 . . . . . . . . . 1 . . . . . . . . . 2 Parts Attached 621 | 5 7 11 48 2 4 6 5 39 48 11 18 18 14 37 14 26 46 9 22 2 27 70 46 17 17 20 32 Power 48 | 1 . 1 5 . . . 1 3 2 . 1 1 . 4 2 2 6 . . . . 11 5 1 . . 2 Engine 32 | 1 . 1 4 . . . 1 3 1 . 1 1 . 2 2 2 4 . . . . 7 2 . . . . Core 13 | . . . 1 . . . . . 1 . . . . 2 . . 2 . . . . 4 3 . . . . Reactor 3 | . . . . . . . . . . . . . . . . . . . . . . . . 1 . . 2 Propulsion 113 | 2 . 2 15 . . . 1 10 9 1 5 5 2 7 1 8 13 . 1 . 9 12 3 3 . 1 3 Treads 71 | 2 . 2 14 . . . 1 10 7 1 4 2 2 6 1 2 1 . . . 5 4 3 3 . 1 . Leg 12 | . . . . . . . . . . . . . . 1 . 5 3 . . . . 2 . . . . 1 Wheel 25 | . . . . . . . . . 1 . . 3 . . . 1 7 . 1 . 4 6 . . . . 2 Hover 3 | . . . . . . . . . . . 1 . . . . . 2 . . . . . . . . . . Flight 2 | . . . 1 . . . . . 1 . . . . . . . . . . . . . . . . . . Utility 190 | 1 2 4 12 2 . 2 2 15 15 6 6 7 8 7 5 5 13 5 12 . 7 18 12 2 8 6 8 Device 101 | . . 1 5 . . 2 . 7 7 1 3 5 5 2 2 4 7 5 11 . 6 9 7 . 5 3 4 Storage 20 | 1 1 1 2 . . . . . 2 . 2 . 1 4 1 . . . . . . 2 2 . . . 1 Processor 6 | . . . . . . . . 1 1 . . . . . . . . . . . . 4 . . . . . Hackware 8 | . . . . . . . . . . 3 . . . . . . 2 . . . . 1 1 . . . 1 Protection 55 | . 1 2 5 2 . . 2 7 5 2 1 2 2 1 2 1 4 . 1 . 1 2 2 2 3 3 2 Artifact . | . . . . . . . . . . . . . . . . . . . . . . . . . . . . Weapon 270 | 1 5 4 16 . 4 4 1 11 22 4 6 5 4 19 6 11 14 4 9 2 11 29 26 11 9 13 19 Energy Gun 68 | 1 1 . 2 . . 2 1 8 8 . 1 . . 5 . 2 5 . 2 1 1 4 10 5 4 2 3 Energy Cannon 52 | . . . 2 . . . . . 10 2 4 3 2 7 . . . . . . 1 2 . 1 3 1 14 Ballistic Gun 62 | . 3 3 11 . 2 1 . 2 . . 1 1 1 1 1 1 . . 5 . 7 8 2 4 1 5 2 Ballistic Cannon 12 | . . . . . . . . . . . . . . . . . . . . . . 4 4 . . 4 . Launcher 32 | . 1 1 . . . 1 . . 3 1 . . 1 2 4 3 4 2 . . 1 2 3 1 1 1 . Special Weapon 3 | . . . 1 . 1 . . . . . . . . . . . . . . . . . 1 . . . . Impact Weapon 2 | . . . . . . . . . . . . . . . . . 1 . 1 . . . . . . . . Slashing Weapon 20 | . . . . . . . . 1 1 1 . . . 2 . . 2 1 1 . 1 9 1 . . . . Piercing Weapon 6 | . . . . . . . . . . . . . . . 1 3 2 . . . . . . . . . . Special Melee Weapon 13 | . . . . . 1 . . . . . . 1 . 2 . 2 . 1 . 1 . . 5 . . . . Unidentified Prototypes 22 | . . . 4 . . . . . 3 . 2 . . . 3 . 3 . . . . 2 1 4 . . . Corrupted Parts 5 | . . . . . . . . . . . . . . . . . . . . . . . . 4 . 1 . System Corruption 33 | . . . . . . . . . . . . . . . . . . . . . . . . 25 . 8 . Parts Lost 127 | . . 6 4 . . . . 8 2 . . . 1 23 . 5 8 1 3 . 5 24 . 1 . 19 17 Power 15 | . . 1 . . . . . 1 . . . . . 2 . . 2 . . . 1 4 . . . 2 2 Propulsion 35 | . . 2 2 . . . . 2 . . . . . 5 . 4 3 1 1 . 4 5 . 1 . 2 3 Utility 33 | . . 1 2 . . . . 2 1 . . . 1 5 . 1 3 . 1 . . 5 . . . 6 5 Weapon 44 | . . 2 . . . . . 3 1 . . . . 11 . . . . 1 . . 10 . . . 9 7 Highest Loss Streak 22 | . . 6 2 . . . . 4 2 . . . 1 22 . 3 5 1 2 . 2 14 . 1 . 14 16 To Critical Strikes 1 | . . . 1 . . . . . . . . . . . . . . . . . . . . . . . . Average Slot Usage (%) 92 | . 95 95 98 100 100 100 95 99 98 100 99 99 97 79 98 95 71 86 76 71 84 85 93 87 86 86 69 Engine 8 | . 14 10 6 11 11 11 9 8 8 . 5 14 15 9 12 14 6 6 6 6 6 3 4 . . . . Core 2 | . . . 4 . . . . . . 9 3 . . 3 2 . . 6 6 6 5 4 5 8 5 4 . Treads 17 | . 28 28 21 22 22 22 27 26 26 27 27 17 22 16 23 8 4 6 6 6 17 5 17 12 11 10 4 Leg 1 | . . . . . . . . . . . . . . . . 10 5 . . . . 1 . . . . . Wheel 2 | . . . . . . . . . . . . 4 . . . . 7 13 12 13 5 6 . . . . 5 Device 12 | . . 1 11 11 11 19 14 8 11 8 8 14 18 13 7 19 9 9 18 26 25 9 4 11 7 5 3 Storage 9 | . 14 14 11 11 11 11 9 9 12 9 9 7 8 12 15 7 6 6 6 6 6 5 5 5 5 5 5 Processor 2 | . . . . . . . . 4 5 . . . . . . . . . . . . 14 17 17 17 17 14 Protection 10 | . 10 12 20 22 22 13 9 13 5 10 18 14 7 4 14 7 10 16 4 . . 4 1 4 7 10 5 Energy Gun 6 | . 13 5 . . . 16 26 19 14 . 1 1 . 7 16 10 5 . 2 1 3 1 4 6 9 8 3 Energy Cannon 4 | . . . . . . . . . 11 26 22 13 15 4 . . . . . . 1 1 . 2 . . 15 Ballistic Gun 6 | . 12 22 20 22 . 5 . 6 . . 1 5 6 2 . . . . 2 . 8 7 1 9 11 8 1 Peak Build Rating 132 | 5 8 9 26 26 26 28 35 38 47 37 41 47 46 46 51 58 73 67 66 63 77 93 93 126 132 129 116 Average Rating 47 | 4 7 7 19 25 23 27 34 30 40 36 38 44 41 37 46 53 54 62 61 47 67 66 87 109 125 124 85 On Entrance 47 | . 5 8 8 26 26 26 28 35 34 37 36 38 45 42 44 51 57 64 63 63 63 51 90 90 125 129 54 Naked Turns . | . . . . . . . . . . . . . . . . . . . . . . . . . . . . Heaviest Build 170 | 12 33 52 108 108 108 108 109 109 119 125 129 137 134 122 128 133 144 151 135 122 126 137 143 153 163 166 170 Greatest Support 160 | 40 40 40 44 44 44 44 66 66 62 60 60 60 60 68 71 71 60 42 26 26 84 121 128 160 160 160 80 Greatest Overweight (x) 32 | . . 1 5 2 2 2 1 2 2 2 3 11 11 5 2 12 14 5 7 4 12 32 1 1 1 1 10 Average Overweight (x) 2 | . . . 1 2 2 2 1 1 1 1 1 7 2 1 1 3 5 4 4 3 4 5 . . . . 3 Largest Inventory Capacity 25 | 8 15 20 25 25 25 25 25 25 25 25 25 25 25 25 25 25 25 25 25 25 25 25 25 25 25 25 25 Average Capacity 24 | 7 13 18 24 25 25 25 25 25 25 25 25 25 25 24 25 25 25 25 25 25 25 25 25 25 25 25 23 Most Carried 25 | 5 14 16 25 25 25 25 25 25 25 25 25 25 25 25 25 25 25 25 25 25 25 25 25 25 25 25 19 Average Carried 23 | 3 11 13 23 24 25 24 24 23 24 23 24 24 24 19 24 24 24 24 23 22 24 22 24 24 24 24 15 Final Capacity 25 | 8 15 20 25 25 25 25 25 25 25 25 25 25 25 25 25 25 25 25 25 25 25 25 25 25 25 25 5 Final Carried 25 | 5 14 12 25 25 25 25 24 25 25 24 25 25 25 25 25 25 25 25 22 22 25 25 24 25 25 14 4 Class Distribution -------------------- 25% | Mutant 17% | Scavenger-Mutant 14% | Scavenger-Tank 11% | Tank 8% | Scavenger-Gunner 5% | Scavenger-Skirmisher 4% | Derelict-Mutant Dominant Class ---------------- Mutant | -10/Materials Mutant | -10/Mines Mutant | -9/Materials Mutant | -9/Mines Mutant | -9/Exiles Mutant | -8/Mines Tank | -8/Materials Scavenger-Tank | -8/Garrison Tank | -8/Materials Tank | -8/Garrison Tank | -8/Materials Tank | -7/Factory Scavenger-Tank | -7/Lower Caves Mutant | -7/Lower Caves Scavenger-Mutant | -7/Zion Derelict-Mutant | -6/Proximity Caves Scavenger-Mutant | -6/Factory Scavenger-Mutant | -6/Lower Caves Scavenger-Skirmisher | -6/Lower Caves Scavenger-Mutant | -6/Data Miner Scavenger-Skirmisher | -5/Proximity Caves Scavenger-Gunner | -5/Factory Hacker-Gunner | -5/Extension Scavenger-Gunner | -5/Cetus Scavenger-Gunner | -5/Archives Scavenger-Gunner | -5/Hub_04(d) Executioner | -4/Factory Resources | -11 -10 -10 -9 -9 -9 -8 -8 -8 -8 -8 -8 -7 -7 -7 -7 -6 -6 -6 -6 -6 -5 -5 -5 -5 -5 -5 -4 ----------- Run | Yrd Mat Min Mat Min Exi Min Mat Gar Mat Gar Mat Fac Low Low Zio Pro Fac Low Low Dat Pro Fac Ext Cet Arc Hub Fac Matter Collected 11682 | 250 355 172 1058 109 . 160 164 512 674 102 353 281 284 502 163 438 373 439 318 . 368 1044 1692 406 364 837 264 Remotely 37 | . . . . . . . . . . . . . . . . 37 . . . . . . . . . . . Salvage Created 21071 | 201 450 44 1716 198 . 146 544 939 2594 511 759 300 526 1183 . 704 1599 688 684 . 608 1605 1566 606 750 1814 336 Parts 1036 | 19 43 7 130 18 . 9 17 56 135 23 52 14 21 50 . 15 67 22 16 . 31 86 62 24 30 66 23 Haulers Intercepted 16 | . 2 . 3 . . . . . 4 . 2 1 . . . . 2 . . . . 2 . . . . . Recyclers Shooed 10 | 2 1 . 1 . . . . . 1 . 1 . . . . . . . . . . 1 2 . . 1 . Parts Field Recycled . | . . . . . . . . . . . . . . . . . . . . . . . . . . . . Retrieved Matter . | . . . . . . . . . . . . . . . . . . . . . . . . . . . . Parts Self-Destructed 88 | . . . . . . . . . . . . . 11 38 . 8 . 3 5 . 23 . . . . . . Prevented 42 | . . . . . . . . . . . . . 9 10 . . . 15 8 . . . . . . . . Kills | -11 -10 -10 -9 -9 -9 -8 -8 -8 -8 -8 -8 -7 -7 -7 -7 -6 -6 -6 -6 -6 -5 -5 -5 -5 -5 -5 -4 ------- Run | Yrd Mat Min Mat Min Exi Min Mat Gar Mat Gar Mat Fac Low Low Zio Pro Fac Low Low Dat Pro Fac Ext Cet Arc Hub Fac Combat Hostiles Destroyed 358 | . 12 10 31 7 . 4 6 28 40 12 8 5 10 20 . 20 16 14 9 . 15 33 26 7 4 16 5 Melee 9 | . . . . . . . . . . . . . . 3 . . . 4 . . . 2 . . . . . Guns 170 | . 9 1 26 7 . 2 6 27 12 . 1 2 1 5 . 3 14 . 5 . 12 12 4 2 2 15 2 Cannons 89 | . . . 5 . . . . . 17 9 7 3 7 8 . . . . . . . 14 15 1 1 . 2 AOE 64 | . 3 9 . . . 2 . 1 5 2 . . . 4 . 17 2 5 2 . 3 5 4 . . . . Classes Destroyed 24 | 3 5 2 3 . . . . 3 2 . . . 2 2 . 1 . 1 . . . . . . . . . Worker 30 | 2 2 1 4 1 . 1 . . 5 . . . . . . . 6 . . . . 4 . . . 4 . Builder 16 | . 1 . . 1 . 1 . . 1 . 1 . . . . . 3 . . . . 3 2 . . 2 1 Tunneler 12 | 4 . 1 2 . . 1 . . . . 1 . . . . . 1 . . . . . . . . 1 1 Hauler 16 | . 2 . 3 . . . . . 4 . 2 1 . . . . 2 . . . . 2 . . . . . Recycler 22 | 1 . . 3 1 . . 2 . 3 . 1 . . . . . 3 . . . . 1 3 . . 4 . Minesweeper 1 | . . . . . . . . . . . . . . 1 . . . . . . . . . . . . . Mechanic 2 | . . . 1 . . . . . . . . . . . . . . . . . . . 1 . . . . Operator 18 | . . . 2 . . . . . 2 . 1 1 . . . . . . . . . . 1 . 9 2 . Watcher 20 | . 3 . 4 . . . 1 . 4 . 2 . . . . . . . . . . . . 2 . 4 . Swarmer 98 | . 9 . 14 7 . . . 9 10 4 . . 1 2 . 1 3 3 4 . 10 18 3 . . . . Cutter 3 | . . . . . . . . 2 . . . . . . . . . . . . . . . . . . 1 Grunt 123 | . 3 . 8 . . 4 5 4 18 4 2 3 5 12 . 6 8 8 3 . 4 10 5 . . 9 2 Brawler 7 | . . . . . . . . . . . . . 1 . . 4 . 1 1 . . . . . . . . Duelist 9 | . . . . . . . . 2 1 . . . . 2 . 3 . . . . . 1 . . . . . Protector 4 | . . . . . . . . . 1 . . . . 1 . 1 . . . . . . . . . 1 . Sentry 57 | . . . 9 . . . 1 7 9 3 5 . 1 1 . 1 . 1 . . 1 2 8 . 4 4 . Demolisher 2 | . . 1 . . . . . . . . . . . . . . . . . . . . 1 . . . . Hunter 14 | . . . . . . . . . 1 1 1 . . . . . 3 . . . . . 7 . . 1 . Programmer 17 | . . . . . . . . 4 . . . 2 1 2 . . 2 . 1 . . 2 . . . 1 2 Behemoth 3 | . . . . . . . . . . . . . 1 . . . . . . . . . 2 . . . . Cetus Guard 7 | . . . . . . . . . . . . . . . . . . . . . . . . 7 . . . Decomposer 2 | . . . . . . . . . . . . . . . . . . 1 1 . . . . . . . . Packrat 3 | . . . . . . . . . . . . . . . . . . . 3 . . . . . . . . Samaritan 6 | . . . . . . . . . . . . . . 2 . 1 . . . . 3 . . . . . . Thief 1 | . . . . . . . . . . . . . . . . . . 1 . . . . . . . . . Assembled 9 | . . 9 . . . . . . . . . . . . . . . . . . . . . . . . . Thug 1 | . . . . . . . . . . . . . . . . 1 . . . . . . . . . . . Savage 3 | . . . . . . . . . . . . . . . . 3 . . . . . . . . . . . Guerrilla 1 | . . . . . . . . . . . . . . . . 1 . . . . . . . . . . . Mutant 1 | . . . . . . . . . . . . . . . . 1 . . . . . . . . . . . Best Kill Streak 10 | 3 5 9 5 4 . 3 6 6 7 4 3 2 3 10 . 10 6 4 4 . 5 6 6 5 3 9 4 Combat Bots Only 10 | . 3 9 4 4 . 3 3 6 6 4 2 2 3 10 . 10 3 4 4 . 5 5 5 4 1 4 3 Max Kills in Single Turn 6 | 1 2 3 2 2 . 1 2 2 2 2 1 1 1 2 . 4 3 2 1 . 3 6 2 2 1 6 1 Gunslinging 2 | . . . 1 . . . 1 1 . . . . . . . . . . . . 2 1 . . . . . Exploded 5 | . 2 3 . . . 1 . 1 2 2 . . . 2 . 3 2 2 1 . 3 5 2 . . . . Melee 1 | . . . . . . . . . . . . . . 1 . . . 1 . . . 1 . . . . . Uniques/NPCs Destroyed . | . . . . . . . . . . . . . . . . . . . . . . . . . . . . Combat | -11 -10 -10 -9 -9 -9 -8 -8 -8 -8 -8 -8 -7 -7 -7 -7 -6 -6 -6 -6 -6 -5 -5 -5 -5 -5 -5 -4 -------- Run | Yrd Mat Min Mat Min Exi Min Mat Gar Mat Gar Mat Fac Low Low Zio Pro Fac Low Low Dat Pro Fac Ext Cet Arc Hub Fac Hostile Shots Fired 2137 | . 67 38 151 27 . 22 28 197 148 47 28 21 67 248 . 42 100 112 39 . 76 180 55 51 21 183 189 Missed 624 | . 24 10 41 7 . 7 10 52 49 14 7 4 25 64 . 16 30 33 13 . 24 52 16 16 6 32 72 Damage Taken 27225 | . 359 759 1180 155 . 263 276 2008 1374 339 265 187 579 2892 . 662 959 729 376 . 834 2451 931 923 487 4945 3292 Core 3925 | . 63 98 127 10 . 32 31 189 234 35 27 20 . 607 . 25 97 91 14 . 111 387 24 28 30 490 1155 Absorbed by Shields 1044 | . . . . . . . . . 70 . . 71 152 335 . 252 101 . . . . . 63 . . . . Reduced by Siege Mode 296 | . . . . . . . . . . . . . . . . . . . . . . 34 32 71 46 64 49 Redirected to Shielding 219 | . . . . . . . . . . . . . . 2 . . . . . . . 46 . . . . 171 Ignored by Resistances 418 | . . . . . . . . . . 44 36 . . . . . 129 209 . . . . . . . . . Regen/Repaired (Parts) 55 | . . . . . . . . . . . 55 . . . . . . . . . . . . . . . . Core Remaining (%) 38 | 100 . 35 . . . 57 . . . . 6 . . . . 6 . . . . 63 . . . . 4 . Volleys Fired 914 | 15 52 12 103 13 . 15 16 52 118 20 27 16 24 52 . 17 33 18 17 . 15 64 63 23 40 59 30 Largest 6 | 1 2 2 2 2 . 2 3 3 3 3 3 3 3 3 . 3 1 1 4 . 4 4 4 4 4 4 6 Hottest 486 | 50 70 40 136 46 . 110 165 181 189 189 223 185 185 240 . 178 250 50 250 . 250 264 252 260 230 240 486 Shots Fired 1992 | 15 92 19 205 25 . 22 48 143 274 39 76 49 67 86 . 32 37 18 23 . 30 145 168 66 81 167 65 Gun 1278 | 15 89 14 176 25 . 14 48 143 177 . 4 17 21 46 . 22 33 . 15 . 28 82 38 41 74 122 34 Cannon 629 | . . . 28 . . . . . 88 38 72 32 43 36 . . . . . . 1 62 124 23 6 45 31 Launcher 84 | . 3 5 . . . 8 . . 9 1 . . 3 4 . 10 4 18 8 . 1 1 6 2 1 . . Special 1 | . . . 1 . . . . . . . . . . . . . . . . . . . . . . . . Kinetic 813 | . 43 14 176 25 . 4 . 38 . . 2 16 21 20 . 1 . . 8 . 20 115 128 32 22 115 13 Thermal 626 | 15 46 . 29 . . 10 48 91 101 . 46 32 32 45 . 21 33 . 7 . 9 18 . 7 3 4 29 Explosive 33 | . 3 5 . . . 8 . . . . . . . . . 10 2 3 . . 1 1 . . . . . Electromagnetic 520 | . . . . . . . . 14 173 39 28 1 14 21 . . 2 15 8 . . 11 40 27 56 48 23 Robot Hit Streak 23 | 6 11 4 23 7 . 5 4 19 18 15 9 10 11 12 . 9 8 12 13 . 9 14 13 17 12 19 11 Robot Miss Streak 13 | 2 5 4 3 1 . 1 6 4 6 1 5 3 2 9 . 2 8 4 13 . 4 7 3 3 4 3 2 Penetration Max 1 | . . . . . . . . . . . . . . . . . . . . . . . 1 1 . 1 . Secondary Targets 23 | . . . 3 3 . . 2 8 1 . . . . . . . . . . . 3 3 . . . . . Max Gunslinging Chain 2 | . . . 1 1 . . 1 2 1 . . . . . . . . . . . 2 2 . . . . . Shots Hit Robots 1349 | 12 52 10 138 17 . 15 27 89 160 20 44 32 43 83 . 35 36 24 15 1 25 93 128 52 55 101 42 Core Hits 877 | 8 28 23 67 11 . 16 16 44 78 13 20 11 18 38 . 102 71 24 17 . 34 59 58 19 27 60 15 Critical Kills 7 | . 1 . 1 . . . . 1 . . . . . . . . . . . . . . . 2 . 2 . Critical Parts Destroyed 11 | . . . 1 . . . . . . . . . . . . . . . . . . . . 2 . 8 . Critical Strikes 67 | . 5 . 2 . . . 2 5 5 . . . 1 3 . 1 . . . . . 10 13 5 1 14 . Burn 15 | . 4 . . . . . 2 4 4 . . . . . . 1 . . . . . . . . . . . Destroy 20 | . 1 . 2 . . . . 1 . . . . . . . . . . . . . . . 5 1 10 . Blast 24 | . . . . . . . . . . . . . . . . . . . . . . 7 13 . . 4 . Corrupt 2 | . . . . . . . . . 1 . . . 1 . . . . . . . . . . . . . . Sever 6 | . . . . . . . . . . . . . . 3 . . . . . . . 3 . . . . . Melee Attacks 176 | . . . . . . . . 6 5 . . . . 26 . 35 4 21 5 1 8 43 22 . . . . Impact 2 | . . . . . . . . . . . . . . . . . . 2 . . . . . . . . . Slashing 112 | . . . . . . . . 6 5 . . . . 22 . . 2 18 5 . 8 43 3 . . . . Piercing 29 | . . . . . . . . . . . . . . . . 26 2 1 . . . . . . . . . Sneak Attacks 62 | . . . . . . . . . 2 . . . . 7 . 10 4 1 3 1 4 8 22 . . . . Combat Hostiles . | . . . . . . . . . . . . . . . . . . . . . . . . . . . . Follow-up Attacks 5 | . . . . . . . . . . . . . . . . . . 3 . . . 2 . . . . . Damage Inflicted 45990 | 154 713 699 2301 291 . 679 644 1739 5084 574 1285 841 1306 2447 . 3286 3051 1590 1205 . 1448 3345 4132 1691 1662 4435 1388 Guns 19288 | 154 646 101 1918 288 . 147 644 1700 1974 . 42 216 244 521 . 243 2164 . 359 . 748 846 564 871 1402 2707 789 Cannons 12212 | . . . 377 . . . . . 1558 509 1243 625 808 883 . . . . . . . 1173 2864 598 179 796 599 Explosions 10834 | . 67 598 . . . 532 . 39 1323 65 . . 254 383 . 2973 602 1058 492 . 353 375 490 222 81 927 . Melee 3642 | . . . . . . . . . 229 . . . . 660 . 70 285 532 354 . 347 951 214 . . . . Ramming 14 | . . . 6 3 . . . . . . . . . . . . . . . . . . . . . 5 . Kinetic 12314 | . 231 101 1918 288 . 29 . 475 . . 16 216 244 251 . . . . 44 . 238 1583 2905 675 497 2288 315 Thermal 11998 | 154 415 . 377 . . 118 644 1036 1537 . 742 625 675 795 . 243 2164 113 369 . 510 382 43 169 82 108 697 Explosive 5540 | . 67 598 . . . 532 . 39 . . . . . . . 2973 433 242 . . 353 303 . . . . . Electromagnetic 12482 | . . . . . . . . 189 3318 574 527 . 387 741 . . 169 703 438 . . 126 970 847 1083 2034 376 Impact 87 | . . . . . . . . . . . . . . . . . . 87 . . . . . . . . . Slashing 3359 | . . . . . . . . . 229 . . . . 660 . . 159 445 354 . 347 951 214 . . . . Piercing 196 | . . . . . . . . . . . . . . . . 70 126 . . . . . . . . . . Highest Corruption 74 | . . . 2 2 2 2 . 6 6 6 6 1 2 7 7 . 5 3 . . . 6 6 31 31 74 5 Average Corruption 5 | . . . 1 2 2 2 . 5 6 6 6 1 1 5 7 . 3 1 . . . 5 6 23 25 20 2 Corruption Purged 18 | . . . . . . . . . . . . . . . . . 2 3 . . . . . . 13 . . Corruption Blocked . | . . . . . . . . . . . . . . . . . . . . . . . . . . . . Effects 682 | . . . 28 23 11 17 . 52 65 30 48 7 55 81 11 . 29 . . . . 19 73 29 37 64 3 Message Errors 160 | . . . 6 4 2 4 . 12 19 6 10 2 14 25 2 . 7 . . . . 2 17 10 8 9 1 Matter Fused 169 | . . . 9 6 3 4 . 11 15 2 17 2 9 19 4 . 5 . . . . 5 23 8 8 18 1 Heat Flow Errors 73 | . . . 3 2 1 2 . 8 7 8 4 1 4 8 1 . 4 . . . . 2 7 . 1 10 . Energy Discharges 84 | . . . 3 3 2 1 . 7 8 5 6 . 9 10 1 . 4 . . . . 7 7 1 4 6 . Parts Rejected 3 | . . . . . . . . . . . . . . . . . . . . . . . 2 . 1 . . Parts Fused 11 | . . . . . . 1 . 2 . . 2 . 2 1 . . . . . . . . 1 1 . 1 . Data Loss (minor) 77 | . . . 3 5 3 4 . 5 5 6 3 . 5 12 1 . 4 . . . . 2 9 4 2 4 . Data Loss (major) 33 | . . . 1 2 . . . 3 6 3 1 . 3 4 2 . . . . . . 1 4 1 1 1 . Misfires 23 | . . . 1 . . . . 2 1 . 2 1 5 . . . 4 . . . . . 1 1 2 2 1 Alerts 16 | . . . 1 . . 1 . 1 1 . 2 1 3 2 . . 1 . . . . . . 1 1 1 . Misdirections 3 | . . . . . . . . . . . . . . . . . . . . . . . . . 1 2 . Weapon Failures 30 | . . . 1 1 . . . 1 3 . 1 . 1 . . . . . . . . . 2 2 8 10 . Overload Shots 8 | . . . . . . . . . . . . . . . . . . . . . . . . . . 4 4 Effects 1 | . . . . . . . . . . . . . . . . . . . . . . . . . . 1 . Energy Bleed 1 | . . . . . . . . . . . . . . . . . . . . . . . . . . 1 . Overflow Damage 1263 | . 1 8 2 . . 24 . . 96 17 11 17 42 22 . 17 56 172 254 . 194 152 37 43 . 98 . Projectiles 206 | . . . 2 . . . . . 8 15 11 17 28 22 . . . . . . . 52 6 35 . 10 . Explosions 254 | . 1 8 . . . 24 . . 38 2 . . 14 . . 17 8 . . . . 15 31 8 . 88 . Melee 803 | . . . . . . . . . 50 . . . . . . . 48 172 254 . 194 85 . . . . . Knockbacks 19 | . . . . . . . . . . . . . . . . . . . . . . 4 7 . . 8 . Impact . | . . . . . . . . . . . . . . . . . . . . . . . . . . . . Kinetic 16 | . . . . . . . . . . . . . . . . . . . . . . 3 6 . . 7 . Secondary 3 | . . . . . . . . . . . . . . . . . . . . . . 1 1 . . 1 . Self-Inflicted Damage 1131 | . . 19 . . . 15 . . 42 13 . . . 78 . 379 79 28 . . 9 117 . . 58 294 . Shots 38 | . . 2 . . . 3 . . 1 1 . . . 3 . 17 3 1 . . 1 2 . . 1 3 . Rammed 3 | . . . 1 . . . . . . . . . . . . . . . . . . . . . . 2 . Targets Rammed 4 | . . . 1 1 . . . . . . . . . . . . . . . . . . . . . 2 . Kicked . | . . . . . . . . . . . . . . . . . . . . . . . . . . . . Crushed 1 | . . . . 1 . . . . . . . . . . . . . . . . . . . . . . . Highest Temperature 473 | 70 180 . 266 203 180 130 442 292 352 337 317 194 470 321 99 337 473 331 382 . 262 389 284 232 211 316 436 Average Temperature 98 | 22 46 . 58 98 93 61 167 97 98 76 87 106 137 113 51 125 134 97 124 . 83 86 91 119 61 102 168 Received Heat Transfer 5140 | . 48 20 330 . . 135 144 369 616 81 108 60 449 1077 . 76 99 429 . . 48 396 88 90 72 396 9 Effects 27 | . . . 3 . . . . . . . 1 . 6 . . . 7 2 1 . . 1 . 1 . . 5 Shutdowns 3 | . . . . . . . . . . . . . . . . . 2 . 1 . . . . . . . . Energy Bleed 5 | . . . 1 . . . . . . . 1 . 2 . . . . . . . . . . 1 . . . Interference 17 | . . . 2 . . . . . . . . . 3 . . . 5 2 . . . . . . . . 5 Short Circuit 2 | . . . . . . . . . . . . . 1 . . . . . . . . 1 . . . . . Siege Activations 38 | . . . . . . . . . . . . . . . . . . . . . . 3 12 3 4 12 4 Total Turns 580 | . . . . . . . . . . . . . . . . . . . . . . 34 202 56 93 145 50 Longest Duration 61 | . . . . . . . . . . . . . . . . . . . . . . 14 61 25 59 24 20 Robots Corrupted 28 | . . . . . . . . . 6 1 . . 2 . . . . 5 2 . . . 3 4 3 1 1 Combat Hostiles 26 | . . . . . . . . . 6 1 . . 2 . . . . 5 2 . . . 3 4 1 1 1 Parts Fried 81 | . . . . . . . . 1 24 2 2 . 2 1 . . . 3 2 . . . 5 8 21 8 2 Impact Corruptions 1 | . . . . . . . . . . . . . . . . . . 1 . . . . . . . . . Robots Melted . | . . . . . . . . . . . . . . . . . . . . . . . . . . . . Combat Hostiles . | . . . . . . . . . . . . . . . . . . . . . . . . . . . . Parts Melted 37 | . 4 . 2 . . . . 5 5 . 1 3 1 2 . 1 5 . 1 . 3 3 . . 1 . . Heat Transferred 21213 | 444 1517 . 629 . . 222 1369 2220 2961 . 1387 1100 1200 1288 . 629 3125 100 525 . 750 420 50 259 87 50 881 Parts Sabotaged 4 | . . . . . . . . . . . . . . . . . . . . . . . . . . . 4 Parts Stolen 1 | . . . . . . . . . . . . . . . . . . 1 . . . . . . . . . Parts Stripped . | . . . . . . . . . . . . . . . . . . . . . . . . . . . . Power Chain Reactions 15 | . . . . . . . . . 8 . . . . 1 . . 1 1 1 . . . 1 . 1 1 . Alert | -11 -10 -10 -9 -9 -9 -8 -8 -8 -8 -8 -8 -7 -7 -7 -7 -6 -6 -6 -6 -6 -5 -5 -5 -5 -5 -5 -4 ------- Run | Yrd Mat Min Mat Min Exi Min Mat Gar Mat Gar Mat Fac Low Low Zio Pro Fac Low Low Dat Pro Fac Ext Cet Arc Hub Fac Peak Influence 1642 | 35 249 35 461 338 . 108 201 979 1229 1355 782 265 . . . . 259 . . . . 859 552 319 216 1642 754 Initial 798 | . 22 . . 178 . . . 130 477 798 660 215 . . . . . . . . . 94 420 227 47 9 745 Average 341 | 17 105 4 329 89 . 34 107 583 681 1125 635 170 . . . . 80 . . . . 382 372 214 100 232 415 Maximum Alert Level 5 | . 1 . 2 1 . . 1 3 4 4 3 1 . . . . 1 . . . . 3 2 1 1 5 3 Low Security (%) 40 | 100 86 100 10 84 . 100 90 9 . . . 43 . . . . 89 . . . . 18 5 30 84 79 38 Level 1 22 | . 13 . 54 15 . . 9 14 . . . 56 . . . . 10 . . . . 54 40 69 15 7 11 Level 2 24 | . . . 35 . . . . 35 69 . 77 . . . . . . . . . . 13 53 . . 1 30 Level 3 9 | . . . . . . . . 41 26 30 22 . . . . . . . . . . 12 . . . 6 19 Level 4 3 | . . . . . . . . . 4 69 . . . . . . . . . . . . . . . 4 . Level 5 . | . . . . . . . . . . . . . . . . . . . . . . . . . . 1 . High Security . | . . . . . . . . . . . . . . . . . . . . . . . . . . . . Max Security . | . . . . . . . . . . . . . . . . . . . . . . . . . . . . Squads Dispatched 49 | . . . 3 . . . 2 . 6 . . 3 . 1 . 1 6 . . . . 11 5 . . 6 5 Investigation 13 | . . . 2 . . . . . 1 . . 1 . . . . . . . . . 5 3 . . . 1 Extermination 8 | . . . . . . . . . . . . 2 . . . . 3 . . . . 1 . . . 1 1 Reinforcement 17 | . . . 1 . . . 1 . 2 . . . . . . . 3 . . . . 2 1 . . 4 3 Assault 6 | . . . . . . . . . 2 . . . . 1 . 1 . . . . . 1 1 . . . . Garrison 5 | . . . . . . . 1 . 1 . . . . . . . . . . . . 2 . . . 1 . Intercept . | . . . . . . . . . . . . . . . . . . . . . . . . . . . . Searches Triggered . | . . . . . . . . . . . . . . . . . . . . . . . . . . . . Data Miner Redirects 4 | . . . . . . . . . . . . . . . . . . . . . . 1 3 . . . . Construction Impeded 5 | . . . . . . . . . 2 . . . . . . . 1 . . . . . . . . 2 . Haulers Reinforced 3 | . . . . . . . . . . . . . . . . . 2 . . . . . . . . 1 . Active Scanning Responses . | . . . . . . . . . . . . . . . . . . . . . . . . . . . . Cargo Convoy Interrupts 1 | . . . . . . . . . . . . . . . . . . . . . . . . . . . 1 Stealth | -11 -10 -10 -9 -9 -9 -8 -8 -8 -8 -8 -8 -7 -7 -7 -7 -6 -6 -6 -6 -6 -5 -5 -5 -5 -5 -5 -4 --------- Run | Yrd Mat Min Mat Min Exi Min Mat Gar Mat Gar Mat Fac Low Low Zio Pro Fac Low Low Dat Pro Fac Ext Cet Arc Hub Fac Distress Signals 24 | . 2 . 6 . . . 1 . 6 . . . . . . . . . . . . 1 . 1 . 5 2 Communications Jammed . | . . . . . . . . . . . . . . . . . . . . . . . . . . . . Distress Signals . | . . . . . . . . . . . . . . . . . . . . . . . . . . . . Times Spotted 553 | . 22 16 60 7 . 4 11 31 54 12 17 6 16 26 . 23 21 18 6 . 15 38 39 9 8 46 48 Peak Tracking Total 22 | . 6 8 5 4 . 3 6 12 5 4 4 3 3 10 . 12 4 4 4 . 5 5 5 5 1 14 22 Tactical Retreats 31 | . 2 . 4 . . . . 1 1 . . . 4 2 . . . 3 1 . . 3 1 . . 6 3 Traps | -11 -10 -10 -9 -9 -9 -8 -8 -8 -8 -8 -8 -7 -7 -7 -7 -6 -6 -6 -6 -6 -5 -5 -5 -5 -5 -5 -4 ------- Run | Yrd Mat Min Mat Min Exi Min Mat Gar Mat Gar Mat Fac Low Low Zio Pro Fac Low Low Dat Pro Fac Ext Cet Arc Hub Fac Traps Triggered 22 | . . . 2 . . . . 6 1 4 . . . . . . 3 . . . . 3 2 . . 1 . Indirectly 1 | . . . . . . . . . . . . . . . . . . . . . . . . . . 1 . Trap Hack Attempts 61 | . . . . . . . . . . . . 61 . . . . . . . . . . . . . . . Triggered . | . . . . . . . . . . . . . . . . . . . . . . . . . . . . Disarmed . | . . . . . . . . . . . . . . . . . . . . . . . . . . . . Reprogrammed 4 | . . . . . . . . . . . . 4 . . . . . . . . . . . . . . . Reused . | . . . . . . . . . . . . . . . . . . . . . . . . . . . . Traps Extracted 4 | . . . . . . . . . . . . 4 . . . . . . . . . . . . . . . Installed . | . . . . . . . . . . . . . . . . . . . . . . . . . . . . Triggered 1 | . . . . . . . . . . . . . 1 . . . . . . . . . . . . . . Most Traps Carried 14 | . . . . . . . . . . . . 4 4 14 14 6 6 4 4 4 4 4 4 4 4 4 4 Machines | -11 -10 -10 -9 -9 -9 -8 -8 -8 -8 -8 -8 -7 -7 -7 -7 -6 -6 -6 -6 -6 -5 -5 -5 -5 -5 -5 -4 ---------- Run | Yrd Mat Min Mat Min Exi Min Mat Gar Mat Gar Mat Fac Low Low Zio Pro Fac Low Low Dat Pro Fac Ext Cet Arc Hub Fac Machines Disabled 69 | . 1 1 1 . . . 1 3 6 3 1 2 . . . 1 2 . . . . 6 3 . 3 33 2 Max in Single Turn 18 | . 1 1 1 . . . 1 2 2 2 1 1 . . . . 2 . . . . 2 1 . 1 18 1 Garrison Access 4 | . . . . . . . . . . . . . . . . . 1 . . . . 2 . . . . 1 Phase Generator 2 | . . . . . . . . 1 . 1 . . . . . . . . . . . . . . . . . Network Hub 3 | . . . . . . . . . . . . . . . . . . . . . . . . . . 3 . Machines Repaired . | . . . . . . . . . . . . . . . . . . . . . . . . . . . . Machines Dismantled . | . . . . . . . . . . . . . . . . . . . . . . . . . . . . Machines Sabotaged . | . . . . . . . . . . . . . . . . . . . . . . . . . . . . Overloaded Fab Kills . | . . . . . . . . . . . . . . . . . . . . . . . . . . . . Hacking | -11 -10 -10 -9 -9 -9 -8 -8 -8 -8 -8 -8 -7 -7 -7 -7 -6 -6 -6 -6 -6 -5 -5 -5 -5 -5 -5 -4 --------- Run | Yrd Mat Min Mat Min Exi Min Mat Gar Mat Gar Mat Fac Low Low Zio Pro Fac Low Low Dat Pro Fac Ext Cet Arc Hub Fac Machines Accessed 83 | . 10 . 11 . 1 . 1 3 11 2 10 1 1 . . . 4 . . 4 . 6 7 . 1 6 4 Terminals 58 | . 8 . 9 . . . . 3 9 2 7 1 . . . . 1 . . . . 3 6 . . 6 3 Fabricators 1 | . . . . . . . . . . . . . . . . . . . . . . 1 . . . . . Repair Stations 1 | . . . . . . . . . . . 1 . . . . . . . . . . . . . . . . Recycling Units 5 | . 2 . . . . . . . . . . . . . . . 2 . . . . . 1 . . . . Scanalyzers 5 | . . . 2 . . . . . 1 . 2 . . . . . . . . . . . . . . . . Garrison Access 6 | . . . . . . . 1 . 1 . . . . . . . 1 . . . . 2 . . . . 1 Total Hacks 320 | . 39 . 51 . 1 . 1 3 29 5 28 4 1 . . . 9 . . 28 . 12 20 . 25 18 46 Successful 184 | . 19 . 38 . 1 . 1 1 14 2 11 1 1 . . . 2 . . 28 . 2 11 . 25 8 19 Failed 133 | . 19 . 12 . . . . 2 15 3 17 3 . . . . 7 . . . . 10 8 . . 10 27 Catastrophic 31 | . 3 . 2 . . . . 1 5 1 3 . . . . . 3 . . . . 3 1 . . 3 6 Database Lockouts 3 | . 1 . 1 . . . . . . . . . . . . . . . . . . . 1 . . . . Manual 146 | . 27 . 29 . . . . . 22 3 5 4 . . . . 3 . . . . 3 8 . . 4 38 Terminals 210 | . 34 . 34 . . . . 3 26 5 17 4 . . . . 3 . . . . 6 18 . . 18 42 Fabricators 1 | . . . . . . . . . . . . . . . . . . . . . . 1 . . . . . Repair Stations 4 | . . . . . . . . . . . 4 . . . . . . . . . . . . . . . . Recycling Units 11 | . 5 . . . . . . . . . . . . . . . 4 . . . . . 2 . . . . Scanalyzers 26 | . . . 17 . . . . . 2 . 7 . . . . . . . . . . . . . . . . Garrison Access 13 | . . . . . . . 1 . 1 . . . . . . . 2 . . . . 5 . . . . 4 Terminal Hacks 117 | . 9 . 10 . 1 . . 1 6 2 3 1 1 . . . . . . 28 . . 9 . 25 8 13 Record 40 | . . . . . 1 . . . 1 . . . . . . . . . . 11 . . . . 25 . 2 Part Schematic 11 | . 2 . . . . . . . . . . . . . . . . . . 9 . . . . . . . Robot Schematic 5 | . . . . . . . . . . . . . . . . . . . . 5 . . . . . . . Robot Analysis 15 | . 4 . 4 . . . . . 2 . . 1 . . . . . . . . . . 3 . . . 1 Prototype ID Bank 10 | . 1 . 2 . . . . . 1 . 1 . . . . . . . . 3 . . . . . 1 1 Open Door 1 | . . . . . . . . . . . . . 1 . . . . . . . . . . . . . . Level Access Points 1 | . . . . . . . . . . . . . . . . . . . . . . . . . . . 1 Branch Access Points 1 | . . . . . . . . . . . . . . . . . . . . . . . . . . . 1 Emergency Access Points 1 | . . . . . . . . . . 1 . . . . . . . . . . . . . . . . . Terminal Index 3 | . . . 1 . . . . . 1 . . . . . . . . . . . . . . . . 1 . Alert Level 1 | . . . . . . . . . . . . . . . . . . . . . . . . . . . 1 Unreport Threat 11 | . 1 . 1 . . . . . . . 1 . . . . . . . . . . . 2 . . 2 4 Locate Traps 8 | . 1 . 2 . . . . . . . . . . . . . . . . . . . 2 . . 2 1 Maintenance Status 1 | . . . . . . . . . . . . . . . . . . . . . . . 1 . . . . Reinforcement Status 1 | . . . . . . . . . . . . . . . . . . . . . . . 1 . . . . Zone Layout 5 | . . . . . . . . . 1 . 1 . . . . . . . . . . . . . . 2 1 Garrison Registry 1 | . . . . . . . . 1 . . . . . . . . . . . . . . . . . . . Security Stations 1 | . . . . . . . . . . 1 . . . . . . . . . . . . . . . . . Fabricator Hacks 1 | . . . . . . . . . . . . . . . . . . . . . . 1 . . . . . Build 1 | . . . . . . . . . . . . . . . . . . . . . . 1 . . . . . Repair Station Hacks 4 | . . . . . . . . . . . 4 . . . . . . . . . . . . . . . . Scan Component 2 | . . . . . . . . . . . 2 . . . . . . . . . . . . . . . . Repair 2 | . . . . . . . . . . . 2 . . . . . . . . . . . . . . . . Recycling Unit Hacks 4 | . 1 . . . . . . . . . . . . . . . 1 . . . . . 2 . . . . Report Inventory 1 | . . . . . . . . . . . . . . . . . . . . . . . 1 . . . . Retrieve Matter 1 | . . . . . . . . . . . . . . . . . . . . . . . 1 . . . . Retrieve Components 2 | . 1 . . . . . . . . . . . . . . . 1 . . . . . . . . . . Scanalyzer 20 | . . . 15 . . . . . 1 . 4 . . . . . . . . . . . . . . . . Insert Component 11 | . . . 7 . . . . . 1 . 3 . . . . . . . . . . . . . . . . Analyze 9 | . . . 8 . . . . . . . 1 . . . . . . . . . . . . . . . . Garrison Access Hacks 4 | . . . . . . . 1 . 1 . . . . . . . 1 . . . . . . . . . 1 Unlock Access 2 | . . . . . . . 1 . 1 . . . . . . . . . . . . . . . . . . Seal Access 2 | . . . . . . . . . . . . . . . . . 1 . . . . . . . . . 1 Unauthorized Hacks 34 | . 9 . 13 . . . . . 6 . . . . . . . . . . . . 1 . . . . 5 Terminals 31 | . 9 . 11 . . . . . 6 . . . . . . . . . . . . . . . . . 5 Botnet 9 | . 3 . 4 . . . . . . . . . . . . . . . . . . . . . . . 2 Operators 3 | . 1 . . . . . . . 1 . . . . . . . . . . . . . . . . . 1 Skim 19 | . 5 . 7 . . . . . 5 . . . . . . . . . . . . . . . . . 2 Fabricators . | . . . . . . . . . . . . . . . . . . . . . . . . . . . . Repair Stations . | . . . . . . . . . . . . . . . . . . . . . . . . . . . . Recycling Units . | . . . . . . . . . . . . . . . . . . . . . . . . . . . . Scanalyzers 2 | . . . 2 . . . . . . . . . . . . . . . . . . . . . . . . Extract 2 | . . . 2 . . . . . . . . . . . . . . . . . . . . . . . . Garrison Access 1 | . . . . . . . . . . . . . . . . . . . . . . 1 . . . . . Jam 1 | . . . . . . . . . . . . . . . . . . . . . . 1 . . . . . Data Cores Recovered 2 | . . . 1 . . . . . . . . 1 . . . . . . . . . . . . . . . Used . | . . . . . . . . . . . . . . . . . . . . . . . . . . . . Hacking Detections 69 | . 9 . 11 . . . . 2 10 2 10 1 . . . . 3 . . . . 5 7 . . 6 3 Full Trace Events 8 | . . . . . . . . . 2 1 . 1 . . . . . . . . . 2 1 . . . 1 Feedback Events 1 | . . . . . . . . . . . . . . . . . . . . . . 1 . . . . . Corruption 1 | . . . . . . . . . . . . . . . . . . . . . . 1 . . . . . Feedback Blocked . | . . . . . . . . . . . . . . . . . . . . . . . . . . . . Robot Schematics Acquired 5 | . . . . . . . . . . . . . . . . . . . . 5 . . . . . . . Robots Built . | . . . . . . . . . . . . . . . . . . . . . . . . . . . . Authchips . | . . . . . . . . . . . . . . . . . . . . . . . . . . . . Time . | . . . . . . . . . . . . . . . . . . . . . . . . . . . . Total Robot Build Rating . | . . . . . . . . . . . . . . . . . . . . . . . . . . . . Part Schematics Acquired 29 | . 2 . 17 . . . . . . . 1 . . . . . . . . 9 . . . . . . . Parts Built 2 | . . . . . . . . . . . . . . . . . . . . . . 2 . . . . . Authchips . | . . . . . . . . . . . . . . . . . . . . . . . . . . . . Time 106 | . . . . . . . . . . . . . . . . . . . . . . 106 . . . . . Total Part Build Rating 12 | . . . . . . . . . . . . . . . . . . . . . . 12 . . . . . Parts Repaired 2 | . . . . . . . . . . . 2 . . . . . . . . . . . . . . . . Time 116 | . . . . . . . . . . . 116 . . . . . . . . . . . . . . . . Parts Recycled . | . . . . . . . . . . . . . . . . . . . . . . . . . . . . Recycled Matter . | . . . . . . . . . . . . . . . . . . . . . . . . . . . . Retrieved Matter . | . . . . . . . . . . . . . . . . . . . . . . . . . . . . Retrieved Components 9 | . 9 . . . . . . . . . . . . . . . . . . . . . . . . . . Parts Scanalyzed 9 | . . . 7 . . . . . 1 . 1 . . . . . . . . . . . . . . . . Part Schematics Acquired 8 | . . . 7 . . . . . . . 1 . . . . . . . . . . . . . . . . Parts Damaged 2 | . . . . . . . . . 1 . 1 . . . . . . . . . . . . . . . . Bothacking | -11 -10 -10 -9 -9 -9 -8 -8 -8 -8 -8 -8 -7 -7 -7 -7 -6 -6 -6 -6 -6 -5 -5 -5 -5 -5 -5 -4 ------------ Run | Yrd Mat Min Mat Min Exi Min Mat Gar Mat Gar Mat Fac Low Low Zio Pro Fac Low Low Dat Pro Fac Ext Cet Arc Hub Fac Used RIF Installer . | . . . . . . . . . . . . . . . . . . . . . . . . . . . . Robots Hacked 2 | . . . . . . . . . . . . . . 1 . . . . . 1 . . . . . . . Non-combat 1 | . . . . . . . . . . . . . . 1 . . . . . . . . . . . . . Combat 1 | . . . . . . . . . . . . . . . . . . . . 1 . . . . . . . Robot Hacks Applied 2 | . . . . . . . . . . . . . . 1 . . . . . 1 . . . . . . . parse_system 2 | . . . . . . . . . . . . . . 1 . . . . . 1 . . . . . . . Relay Couplers Released 8 | . . . . . . . . 3 . . . . . . . . 2 . . . . 3 . . . . . Machine Destruction 5 | . . . . . . . . . . . . . . . . . 2 . . . . 3 . . . . . Programmers 3 | . . . . . . . . 3 . . . . . . . . . . . . . . . . . . . Fabnet Peak Effective % . | . . . . . . . . . . . . . . . . . . . . . . . . . . . . Robots Rewired 21 | . . . . . . . . . . . . . . 2 . 4 . . . . . . 15 . . . . Allies Hacked . | . . . . . . . . . . . . . . . . . . . . . . . . . . . . Hacks Repelled . | . . . . . . . . . . . . . . . . . . . . . . . . . . . . Allies | -11 -10 -10 -9 -9 -9 -8 -8 -8 -8 -8 -8 -7 -7 -7 -7 -6 -6 -6 -6 -6 -5 -5 -5 -5 -5 -5 -4 -------- Run | Yrd Mat Min Mat Min Exi Min Mat Gar Mat Gar Mat Fac Low Low Zio Pro Fac Low Low Dat Pro Fac Ext Cet Arc Hub Fac Total Allies 30 | . . 3 . 2 . . . . . . . . . 2 2 4 . . . . . . 17 . . . . Largest Group 8 | . . 3 3 2 2 . . . . . . . . 2 2 3 2 . . . . . 8 4 1 . . Highest-Rated Group 289 | . . 40 40 51 51 . . . . . . . . 46 70 91 60 . . . . . 289 96 26 . . Highest-Rated Ally 159 | . . 16 16 31 31 . . . . . . . . 30 39 39 31 . . . . . 159 26 26 . . Warlord Squad Rendezvous 1 | . . . . . . . . . . . . . . . . . . . . . . . . . . . 1 Ranger 1 | . . . . . . . . . . . . . . . . . . . . . . . . . . . 1 Total Orders 9 | . . . . . . . . . . . . . . . . . . . . . . . 3 . . . 6 STAY 2 | . . . . . . . . . . . . . . . . . . . . . . . 2 . . . . FOLLOW 1 | . . . . . . . . . . . . . . . . . . . . . . . 1 . . . . EXPLORE 2 | . . . . . . . . . . . . . . . . . . . . . . . . . . . 2 RETURN 4 | . . . . . . . . . . . . . . . . . . . . . . . . . . . 4 Ally Attacks 170 | . . . 28 . . . . . . . . . . 11 . 34 11 . . . . . 86 . . . . Total Damage 2517 | . . . 276 . . . . . . . . . . 170 . 335 116 . . . . . 1620 . . . . Kills 22 | . . . 9 . . . . . . . . . . 1 . 3 1 . . . . . 8 . . . . Allies Corrupted . | . . . . . . . . . . . . . . . . . . . . . . . . . . . . Allies Melted . | . . . . . . . . . . . . . . . . . . . . . . . . . . . . Intel | -11 -10 -10 -9 -9 -9 -8 -8 -8 -8 -8 -8 -7 -7 -7 -7 -6 -6 -6 -6 -6 -5 -5 -5 -5 -5 -5 -4 ------- Run | Yrd Mat Min Mat Min Exi Min Mat Gar Mat Gar Mat Fac Low Low Zio Pro Fac Low Low Dat Pro Fac Ext Cet Arc Hub Fac Robot Analysis Total 14 | . 4 . 4 . . . . . 1 . . 1 . . . . . . . . . . 3 . . . 1 Derelict Logs Recovered 15 | . . 2 . 1 . . . . . . . . 3 2 2 2 . 2 . . 1 . . . . . . Drone Launches 11 | . . . . . . . . . . . . . . . . . . . . . . . . . . 5 6 Drone Recoveries 6 | . . . . . . . . . . . . . . . . . . . . . . . . . . 1 5 Exploration | -11 -10 -10 -9 -9 -9 -8 -8 -8 -8 -8 -8 -7 -7 -7 -7 -6 -6 -6 -6 -6 -5 -5 -5 -5 -5 -5 -4 ------------- Run | Yrd Mat Min Mat Min Exi Min Mat Gar Mat Gar Mat Fac Low Low Zio Pro Fac Low Low Dat Pro Fac Ext Cet Arc Hub Fac Turns Passed 52531 | 214 1684 1778 3928 1805 964 1365 188 2052 2474 1286 1430 824 4628 3612 3295 4417 1711 2125 2268 180 2787 1872 2702 534 601 1153 654 Spaces Moved 19307 | 105 935 765 1111 575 315 431 54 754 752 421 373 250 1397 1170 1302 1362 559 1252 1392 126 1108 626 1041 206 218 425 282 Core 73 | 4 . . . . . . . . . . . . . . . . . . . . . 2 . . . . 67 Treads 13959 | 101 935 765 1111 575 315 431 54 754 752 421 373 80 1382 1165 1302 587 102 . . . 629 177 1041 206 218 425 58 Legs 647 | . . . . . . . . . . . . . . 5 . 558 59 . . . . 25 . . . . . Wheels 4628 | . . . . . . . . . . . . 170 15 . . 217 398 1252 1392 126 479 422 . . . . 157 Hover . | . . . . . . . . . . . . . . . . . . . . . . . . . . . . Flight . | . . . . . . . . . . . . . . . . . . . . . . . . . . . . Fastest Speed 50 | 50 160 160 160 305 305 305 225 225 235 240 240 240 255 120 240 240 123 138 150 135 150 110 160 160 160 160 50 Average Speed 240 | 155 160 217 304 305 305 305 225 234 238 281 311 271 319 285 248 310 233 157 153 139 232 222 210 172 168 187 163 Slowest Speed 1650 | 160 160 240 560 305 305 305 225 312 325 320 400 320 320 560 320 480 400 165 205 150 320 1650 240 240 240 240 250 Overloaded Moves . | . . . . . . . . . . . . . . . . . . . . . . . . . . . . Propulsion Burnouts . | . . . . . . . . . . . . . . . . . . . . . . . . . . . . Robots Hopped . | . . . . . . . . . . . . . . . . . . . . . . . . . . . . Cave-ins Triggered . | . . . . . . . . . . . . . . . . . . . . . . . . . . . . Exploration Rate (%) 70 | 6 99 100 97 99 71 99 9 87 84 65 42 8 99 98 87 98 16 98 98 75 97 21 98 70 92 57 15 Regions Visited 27 Branch Regions 16 Pre-discovered Areas 12 | . 1 2 1 . . . . . 1 . . . 2 1 2 1 . . . 1 . . . . . . . Known Exits Taken 9 | . . 1 1 . . 1 1 . 1 . 1 1 1 . . . 1 . . . . . . . . . . Unknown Exits Taken 16 | 1 1 . . 1 1 . . . . . . . . 1 1 1 . 1 1 1 1 1 1 1 1 1 . Scrap Searched 21 | . . 2 . 1 . 1 . . . . . . 2 2 5 1 . 1 4 . 2 . . . . . . Spaces Dug 84 | . . 7 1 . . . . 4 . . . . . . . 25 . 5 . . 5 22 . . . 11 4 Terrain Destroyed 1342 | . 12 21 1 . . 39 . 78 46 72 11 . . 7 . 178 37 66 6 . 29 127 40 2 7 555 8 Melee 53 | . . . . . . . . 4 . . . . . . . 25 . 5 . . 4 15 . . . . . Projectile 140 | . . . 1 . . . . . . . 11 . . . . . . . . . 2 25 39 2 2 50 8 AOE 1149 | . 12 21 . . . 39 . 74 46 72 . . . 7 . 153 37 61 6 . 23 87 1 . 5 505 . Terrain Rammed . | . . . . . . . . . . . . . . . . . . . . . . . . . . . . Walls Destroyed . | . . . . . . . . . . . . . . . . . . . . . . . . . . . . Machines Disabled . | . . . . . . . . . . . . . . . . . . . . . . . . . . . . Actions | -11 -10 -10 -9 -9 -9 -8 -8 -8 -8 -8 -8 -7 -7 -7 -7 -6 -6 -6 -6 -6 -5 -5 -5 -5 -5 -5 -4 --------- Run | Yrd Mat Min Mat Min Exi Min Mat Gar Mat Gar Mat Fac Low Low Zio Pro Fac Low Low Dat Pro Fac Ext Cet Arc Hub Fac Total 23433 | 138 1033 860 1469 604 318 462 86 918 1200 492 585 366 1524 1339 1367 1455 865 1353 1481 132 1261 915 1424 346 372 653 415 Wait 1705 | 9 21 69 121 6 . . 3 18 236 24 143 4 78 25 18 3 175 49 25 . 76 65 189 68 85 143 52 Move 19280 | 104 934 764 1110 574 314 430 53 753 751 420 372 249 1396 1169 1301 1361 558 1251 1391 125 1107 625 1040 205 217 424 282 Hop . | . . . . . . . . . . . . . . . . . . . . . . . . . . . . Pick Up 273 | 5 14 3 40 3 . 5 5 19 9 5 8 7 4 23 11 3 12 5 5 2 13 22 22 13 4 2 9 Fast Attach 218 | 5 2 1 9 1 . . 1 11 21 . 10 4 4 13 7 11 32 . 9 . 4 28 14 6 8 . 17 Attach 137 | . 1 5 5 . . 1 3 10 2 5 1 2 2 16 . 2 12 3 4 2 13 20 5 3 . 11 9 Detach 33 | . . . 1 . . . . 1 1 . 1 2 1 4 . 1 5 . 3 . 3 5 2 . . . 3 Swap 267 | . 4 5 34 1 4 5 1 18 25 6 7 12 8 8 7 13 2 6 9 . 10 23 27 8 9 9 6 Drop 350 | . 5 1 45 5 . 6 4 18 32 6 16 9 7 3 23 9 32 3 13 2 12 24 38 20 9 1 7 Fire 914 | 15 52 12 103 13 . 15 16 52 118 20 27 16 24 52 . 17 33 18 17 . 15 64 63 23 40 59 30 Melee 169 | . . . . . . . . 6 5 . . . . 26 . 35 4 18 5 1 8 39 22 . . . . Ram 2 | . . . . . . . . . . . . . . . . . . . . . . . . . . 2 . Kick . | . . . . . . . . . . . . . . . . . . . . . . . . . . . . Crush 4 | . . . 1 1 . . . . . . . . . . . . . . . . . . . . . 2 . Escape Stasis 20 | . . . . . . . . 12 . 6 . . . . . . . . . . . . 2 . . . . Rewire . | . . . . . . . . . . . . . . . . . . . . . . . . . . . . Trap 61 | . . . . . . . . . . . . 61 . . . . . . . . . . . . . . . Miscellaneous . | . . . . . . . . . . . . . . . . . . . . . . . . . . . . Route ------- -11/Scrapyard -10/Materials (discovered 5 exits: *Mat x3 / [*Min] / *Sub) -10/Mines (discovered 3 exits: *Mat x2 / Sub) -9/Materials (discovered 6 exits: *Mat x3 / *Min / *Sto x2) -9/Mines (discovered 3 exits: *Mat x2 / *Exi) -9/Exiles (discovered 2 exits: [*Min x2]) -8/Mines (discovered 2 exits: *Mat x2) -8/Materials (discovered 3 exits: Fac x2 / Gar) -8/Garrison (discovered 3 exits: *Mat x3) -8/Materials (discovered 2 exits: *Fac / Gar) -8/Garrison (discovered 2 exits: *Mat x2) -8/Materials -7/Factory (discovered 2 exits: *Fac / *Low) -7/Lower Caves -7/Lower Caves (discovered 2 exits: *Fac / [*Zio]) -7/Zion (discovered 2 exits: Dee / [*Pro]) -6/Proximity Caves -6/Factory -6/Lower Caves -6/Lower Caves (discovered 2 exits: *Fac / *Dat) -6/Data Miner -5/Proximity Caves -5/Factory (discovered 2 exits: *Fac / *Ext) -5/Extension (discovered 2 exits: *Fac / *Cet) -5/Cetus (discovered 2 exits: *Fac / *Arc) -5/Archives (discovered 3 exits: *Fac / *Hub x2) -5/Hub_04(d) (discovered 2 exits: *Fac x2) -4/Factory (discovered 7 exits: *Res x4 / Upp x2 / Arm) History --------- Turn | Location | Event 5 | -11/Scrapyard | Discovered new exit (range 14) 215 | -11/Scrapyard | Entered Materials 311 | -10/Materials | Build established: Mutant 340 | -10/Materials | Discovered new exit (range 12) 499 | -10/Materials | Discovered new exit (range 11) 1022 | -10/Materials | Discovered new exit (range 5) 1127 | -10/Materials | Identified exit to Materials 1127 | -10/Materials | Identified exit to Subcaves 1257 | -10/Materials | Learned Storage trap positions 1307 | -10/Materials | Learned location of 2 exits from Materials 1345 | -10/Materials | Learned location of Storage (-9) 1375 | -10/Materials | Learned 4 Recycling zone layouts 1468 | -10/Materials | Learned location of 2 exits from Mines 1472 | -10/Materials | Central database locked down 1899 | -10/Materials | Entered Mines 1937 | -10/Mines | Received a Rocket Launcher from a helpful Derelict 2019 | -10/Mines | Discovered exit to Materials (range 7) 2040 | -10/Mines | Learned location of Zion (-7) 2173 | -10/Mines | Assembled infested the area 2204 | -10/Mines | Core integrity fell below 50% 2227 | -10/Mines | Destroyed 9 combat bots 2619 | -10/Mines | Lost 6 parts (1p2n1u2w) 2652 | -10/Mines | A weapon hastily lodged in a ceiling crevice suddenly fell to the ground 2986 | -10/Mines | Assisted by bots powering up and referring to "LRC-V3" 3240 | -10/Mines | Learned location of 1 exit from Materials 3677 | -10/Mines | Entered Materials 3677 | -9/Materials | Accompanied by 3 allies 3677 | -9/Materials | Evolved 2 slots: Utility x2 3678 | -9/Materials | Identified exit to Mines 3678 | -9/Materials | Identified exit to Storage 4261 | -9/Materials | Discovered new exit (range 10) 5073 | -9/Materials | Discovered new exit (range 14) 5325 | -9/Materials | Learned location of 1 exit from Storage 5378 | -9/Materials | Learned Storage terminal intel 5419 | -9/Materials | Identified exit to Materials 5449 | -9/Materials | Learned Storage garrison access intel 5449 | -9/Materials | Central database locked down 5467 | -9/Materials | Learned location of 1 exit from Storage 5476 | -9/Materials | Learned 4 Recycling zone layouts 5494 | -9/Materials | Learned location of Mines (-8) 5521 | -9/Materials | Learned Storage security intel 5558 | -9/Materials | Learned location of 2 exits from Materials 7605 | -9/Materials | Entered Mines 7763 | -9/Mines | Deemed a non-threat by the Exiles lab entrance 7763 | -9/Mines | Discovered new exit (range 5) 8290 | -9/Mines | Learned Materials stockpile data 8351 | -9/Mines | Discovered exit to Materials (range 5) 9151 | -9/Mines | Discovered exit to Materials (range 7) 9410 | -9/Mines | Entered Exiles 9410 | -9/Exiles | Found Exiles lab abandoned 9410 | -9/Exiles | Accompanied by 2 allies 9440 | -9/Exiles | Led the pair of lost Derelicts to a safe place 9468 | -9/Exiles | Discovered new exit (range 15) 10347 | -9/Exiles | Discovered new exit (range 10) 10374 | -9/Exiles | Entered Mines 11434 | -8/Mines | Discovered exit to Materials (range 10) 11477 | -8/Mines | Discovered exit to Materials (range 13) 11739 | -8/Mines | Entered Materials 11739 | -8/Materials | Evolved 2 slots: Propulsion x1, Weapon x1 11740 | -8/Materials | Identified exit to Factory 11758 | -8/Materials | Garrison activated, responded to threat 11910 | -8/Materials | Identified exit to Garrison 11927 | -8/Materials | Entered Garrison 12051 | -8/Garrison | Build established: Tank 12077 | -8/Garrison | Triggered checkpoint 12146 | -8/Garrison | Lost 4 parts (1p2n1w) 12293 | -8/Garrison | Discovered new exit (range 10) 12365 | -8/Garrison | Phase Generator disabled 12601 | -8/Garrison | Triggered checkpoint 12684 | -8/Garrison | Build established: Scavenger-Tank 12749 | -8/Garrison | Triggered checkpoint 12905 | -8/Garrison | Discovered new exit (range 5) 12957 | -8/Garrison | Triggered checkpoint 13085 | -8/Garrison | Identified exit to Materials 13155 | -8/Garrison | Triggered checkpoint 13304 | -8/Garrison | Discovered exit to Materials (range 14) 13580 | -8/Garrison | Discovered exit to Materials (range 63) 13580 | -8/Garrison | Discovered exit to Materials (range 90) 13580 | -8/Garrison | Discovered exit to Materials (range 43) 13979 | -8/Garrison | Entered Materials 14375 | -8/Materials | Core integrity fell below 50% 14882 | -8/Materials | Build established: Tank 15440 | -8/Materials | Learned 2 Lower Caves zone layouts 15560 | -8/Materials | Learned Storage security intel 15579 | -8/Materials | First assault squad dispatched 15605 | -8/Materials | Learned Factory recycling unit intel 15638 | -8/Materials | Learned 4 Recycling zone layouts 15730 | -8/Materials | Learned 8 Factory zone layouts 15789 | -8/Materials | Learned Factory stockpile data 16044 | -8/Materials | Identified exit to Garrison 16389 | -8/Materials | Garrison activated, responded to threat 16394 | -8/Materials | Core integrity fell below 20% 16453 | -8/Materials | Entered Garrison 16590 | -8/Garrison | Phase Generator disabled 16638 | -8/Garrison | Learned Materials security intel 16739 | -8/Garrison | Triggered checkpoint 16806 | -8/Garrison | Build established: Hacker-Gunner 17169 | -8/Garrison | Discovered new exit (range 9) 17331 | -8/Garrison | Build established: Tank 17485 | -8/Garrison | Triggered checkpoint 17707 | -8/Garrison | Discovered new exit (range 9) 17739 | -8/Garrison | Entered Materials 18759 | -8/Materials | Repaired Broken Mni. Drone Bay 18798 | -8/Materials | Repaired EM Pulse Cannon 19111 | -8/Materials | Discovered exit to Factory (range 8) 19169 | -8/Materials | Entered Factory 19169 | -7/Factory | Evolved 2 slots: Power x1, Utility x1 19170 | -7/Factory | Identified exit to Lower Caves 19173 | -7/Factory | Loaded intel: 6 recycling unit locations 19924 | -7/Factory | Discovered new exit (range 16) 19993 | -7/Factory | Entered Lower Caves 20020 | -7/Lower Caves | Met a Warlord Commander 20021 | -7/Lower Caves | Learned location of Warlord (-4) 20022 | -7/Lower Caves | Warlord Commander delivered Encrypted Comm Array 20032 | -7/Lower Caves | Found Unknown Device 20032 | -7/Lower Caves | Identified Encrypted Comm Array 20051 | -7/Lower Caves | Learned 8 Factory zone layouts 20436 | -7/Lower Caves | Spotted B-75 Beast 20468 | -7/Lower Caves | Destroyed B-75 Beast 20970 | -7/Lower Caves | Identified exit to Lower Caves 21388 | -7/Lower Caves | Build established: Scavenger-Tank 23927 | -7/Lower Caves | Encountered a Warlord checkpoint 24192 | -7/Lower Caves | Attracted the attention of an 0b10 checkpoint 24621 | -7/Lower Caves | Entered another Lower Caves area 24962 | -7/Lower Caves | Discovered new exit (range 15) 25013 | -7/Lower Caves | Build established: Scavenger-Mutant 25466 | -7/Lower Caves | Build established: Scavenger-Tank 25564 | -7/Lower Caves | Discovered new exit (range 16) 25960 | -7/Lower Caves | Attracted the attention of an 0b10 outpost 26035 | -7/Lower Caves | Destroyed 10 combat bots 26063 | -7/Lower Caves | Core integrity fell below 50% 26100 | -7/Lower Caves | Core integrity fell below 20% 26136 | -7/Lower Caves | Lost 22 parts (2p5n5u10w) 26283 | -7/Lower Caves | Build established: Mutant 26756 | -7/Lower Caves | Attracted the attention of an 0b10 checkpoint 26933 | -7/Lower Caves | Learned Factory security intel 27371 | -7/Lower Caves | Build established: Scavenger-Mutant 28108 | -7/Lower Caves | Build established: Trapper-Tank 28233 | -7/Lower Caves | Entered Zion 28396 | -7/Zion | Discovered new exit (range 12) 28601 | -7/Zion | System corruption cleaned by Quarantine Array 28764 | -7/Zion | Found Prototype Launcher 28764 | -7/Zion | Identified Rocket Array 28943 | -7/Zion | Learned location of Data Miner (-6) 29034 | -7/Zion | Build established: Trapper-Mutant 29150 | -7/Zion | Found Prototype Energy Gun 29257 | -7/Zion | Given the Hacking Drone Bay 29257 | -7/Zion | Found Prototype Device 29272 | -7/Zion | Identified Hacking Drone Bay 29425 | -7/Zion | Identified exit to Deep Caves 29454 | -7/Zion | Build established: Scavenger-Mutant 29473 | -7/Zion | Found Unknown Piercing Weapon 29473 | -7/Zion | Identified CR-A16's Pointy Stick 29729 | -7/Zion | Gained Derelict followers 29915 | -7/Zion | Met Imprinter 30513 | -7/Zion | Found GAL Module 31528 | -7/Zion | Entered Proximity Caves 31528 | -6/Proximity Caves | Accompanied by 2 allies 31662 | -6/Proximity Caves | Build established: Derelict-Tank 32014 | -6/Proximity Caves | Build established: Derelict-Mutant 32033 | -6/Proximity Caves | Attracted the attention of an 0b10 outpost 32087 | -6/Proximity Caves | Lost 3 parts (2n1u) 32088 | -6/Proximity Caves | Destroyed 10 combat bots 33121 | -6/Proximity Caves | Attacked by a faux Warlord 33338 | -6/Proximity Caves | Learned location of Extension (-5) 33863 | -6/Proximity Caves | Discovered new exit (range 10) 34622 | -6/Proximity Caves | Attracted the attention of an 0b10 checkpoint 34955 | -6/Proximity Caves | Build established: Scavenger-Mutant 35945 | -6/Proximity Caves | Entered Factory 35945 | -6/Factory | Accompanied by 2 allies 35945 | -6/Factory | Evolved 2 slots: Propulsion x1, Weapon x1 35946 | -6/Factory | Identified exit to Lower Caves 35947 | -6/Factory | Identified Storm Laser 36291 | -6/Factory | Build established: Scavenger-Tank 36622 | -6/Factory | Lost 5 parts (2p3n) 36863 | -6/Factory | Build established: Scavenger-Mutant 37656 | -6/Factory | Entered Lower Caves 37771 | -6/Lower Caves | Attracted the attention of an 0b10 checkpoint 38616 | -6/Lower Caves | Learned 4 Factory zone layouts 38676 | -6/Lower Caves | Spotted B-75 Beast 39227 | -6/Lower Caves | Encountered a Warlord checkpoint 39591 | -6/Lower Caves | Discovered new exit (range 12) 39639 | -6/Lower Caves | Learned Factory stockpile data 39781 | -6/Lower Caves | Entered another Lower Caves area 39811 | -6/Lower Caves | Discovered new exit (range 5) 41268 | -6/Lower Caves | Discovered new exit (range 7) 41294 | -6/Lower Caves | Build established: Scavenger-Skirmisher 42049 | -6/Lower Caves | Entered Data Miner 42049 | -6/Data Miner | Discovered new exit (range 6) 42078 | -6/Data Miner | Met Data Miner 42124 | -6/Data Miner | Learned location of Section 7 (-3) 42124 | -6/Data Miner | Acquired the access code to Warlord's prototype stash 42146 | -6/Data Miner | Received God Mode back door access code from Data Miner 42229 | -6/Data Miner | Entered Proximity Caves 42391 | -5/Proximity Caves | Build established: Scavenger-Mutant 42983 | -5/Proximity Caves | Build established: Scavenger-Skirmisher 43154 | -5/Proximity Caves | Attracted the attention of an 0b10 checkpoint 43575 | -5/Proximity Caves | Learned Factory terminal intel 44915 | -5/Proximity Caves | Discovered new exit (range 15) 44965 | -5/Proximity Caves | Build established: Derelict-Skirmisher 45016 | -5/Proximity Caves | Entered Factory 45016 | -5/Factory | Evolved 2 slots: Utility x2 45019 | -5/Factory | Loaded intel: 28 terminal locations 45335 | -5/Factory | Lost 3 parts (1p1u1w) 45486 | -5/Factory | Lost 3 parts (1u2w) 45577 | -5/Factory | Build established: Scavenger-Gunner 45699 | -5/Factory | Incoming investigation squad redirected 45875 | -5/Factory | Fabricated Enh. Gauss Cannon (x2) 45931 | -5/Factory | Lost 14 parts (2p4n2u6w) 46287 | -5/Factory | Discovered new exit (range 21) 46414 | -5/Factory | Garrison activated, responded to threat 46774 | -5/Factory | Specialist reinforcements revealed to be Infiltrators 46844 | -5/Factory | Discovered new exit (range 16) 46888 | -5/Factory | Entered Extension 47195 | -5/Extension | Rescued a captive Derelict 47347 | -5/Extension | Build established: Hacker-Gunner 47359 | -5/Extension | Rescued A7 47488 | -5/Extension | First assault squad dispatched 47512 | -5/Extension | Incoming assault squad redirected 47543 | -5/Extension | Spotted B-75 Beast 47593 | -5/Extension | Destroyed B-75 Beast 47594 | -5/Extension | Incoming assault squad redirected 47879 | -5/Extension | Disrupted transfer network 47951 | -5/Extension | Build established: Commander-Gunner 48136 | -5/Extension | Lost 5 allies 48186 | -5/Extension | Spotted B-75 Beast 48213 | -5/Extension | Destroyed B-75 Beast 48320 | -5/Extension | Extracted ID and sensor layout for unrecognized location from A7's data core 48719 | -5/Extension | Central database locked down 48765 | -5/Extension | Build established: Hacker-Gunner 49039 | -5/Extension | Discovered new exit (range 10) 49041 | -5/Extension | Discovered new exit (range 6) 49099 | -5/Extension | Build established: Commander-Gunner 49173 | -5/Extension | Incoming investigation squad redirected 49424 | -5/Extension | Build established: Scavenger-Gunner 49590 | -5/Extension | Entered Cetus 49590 | -5/Cetus | Accompanied by 4 allies 49633 | -5/Cetus | Spotted Cetus Guard 49633 | -5/Cetus | Spotted Cetus Guard 49633 | -5/Cetus | Spotted Cetus Guard 49633 | -5/Cetus | Spotted Cetus Guard 49682 | -5/Cetus | Destroyed Cetus Guard 49693 | -5/Cetus | Destroyed Cetus Guard 49694 | -5/Cetus | Destroyed Cetus Guard 49697 | -5/Cetus | Lost 3 allies 49753 | -5/Cetus | System corruption reached 10% 49769 | -5/Cetus | System corruption reached 30% 49835 | -5/Cetus | Discovered new exit (range 21) 49880 | -5/Cetus | Spotted Cetus Guard 49881 | -5/Cetus | Spotted Cetus Guard 49883 | -5/Cetus | Spotted Cetus Guard 49884 | -5/Cetus | Spotted Cetus Guard 49886 | -5/Cetus | Destroyed Cetus Guard 49892 | -5/Cetus | Destroyed Cetus Guard 49896 | -5/Cetus | Destroyed Cetus Guard 49906 | -5/Cetus | Destroyed Cetus Guard 49922 | -5/Cetus | Discovered new exit (range 21) 49945 | -5/Cetus | Met Revision 17 50124 | -5/Cetus | Entered Archives 50124 | -5/Archives | Accompanied by 1 ally 50363 | -5/Archives | Discovered new exit (range 22) 50421 | -5/Archives | Discovered new exit (range 21) 50454 | -5/Archives | Unable to access archive contents 50533 | -5/Archives | Discovered new exit (range 18) 50725 | -5/Archives | Entered Hub_04(d) 51118 | -5/Hub_04(d) | Discovered new exit (range 5) 51455 | -5/Hub_04(d) | Discovered new exit (range 5) 51603 | -5/Hub_04(d) | Garrison activated, responded to threat 51740 | -5/Hub_04(d) | Network Hub disabled 51746 | -5/Hub_04(d) | Spotted Lightning 51749 | -5/Hub_04(d) | Spotted Lightning 51754 | -5/Hub_04(d) | Spotted Lightning 51755 | -5/Hub_04(d) | Spotted Lightning 51813 | -5/Hub_04(d) | Spotted Lightning 51814 | -5/Hub_04(d) | Network Hub disabled 51818 | -5/Hub_04(d) | Core integrity fell below 50% 51818 | -5/Hub_04(d) | Spotted Lightning 51837 | -5/Hub_04(d) | Spotted Lightning 51846 | -5/Hub_04(d) | Network Hub disabled 51849 | -5/Hub_04(d) | Spotted Lightning 51851 | -5/Hub_04(d) | Spotted Lightning 51860 | -5/Hub_04(d) | Core integrity fell below 20% 51878 | -5/Hub_04(d) | Entered Factory 51878 | -4/Factory | Accompanied by 1 ally 51878 | -4/Factory | Evolved 2 slots: Weapon x2 51904 | -4/Factory | Lost 3 allies 51908 | -4/Factory | Lost 14 parts (2p2n5u5w) 51960 | -4/Factory | Discovered new exit (range 26) 52003 | -4/Factory | Identified exit to Research 52003 | -4/Factory | Identified exit to Upper Caves 52003 | -4/Factory | Identified exit to Armory 52190 | -4/Factory | Spotted B-86 Titan 52511 | -4/Factory | Core integrity fell below 50% 52522 | -4/Factory | Cargo convoy interrupted 52527 | -4/Factory | Core integrity fell below 20% 52528 | -4/Factory | Joined by Warlord Ranger squad 52532 | -4/Factory | Destroyed by H-77 Assassin with Coil Gun Last Messages --------------- 52529_ Slug penetrates 14-CUG(h). 52529_ Slug penetrates Earth. 52529_ K-01 Serf knocked back. 52529_ Knocked back. 52529_ 14-CUG(h) knocked back. 52529_ 14-CUG(h) destroyed. 52530_ Acquired Unknown Leg. 52530_ Identified Myomer Leg. 52532_ Myomer Leg severed. 52532_ P-70 Sage knocked back. 52532_ C-35 Carver destroyed. 52532_ K-01 Serf collects debris. 52532_ Encrypted Comm Array blown off. 52532_ Enh. Optical Array blown off. 52532_ Imp. Hacking Suite blown off. 52532_ Adv. Targeting Computer blown off. 52532_ E-15 Imp destroyed. 52532_ C-35 Carver destroyed. 52532_ Slug penetrates P-70 Sage. 52532_ Penetrated by Slug. Map ----- +----------------------------------------------------+ | ?????+ *+ #?????????????????????????????? | | ?????# # """ #?????????????????????????????? | | ?????# ^ # """ #?????????????????????????????? | | ?????# ^^^# """ #?????????????????????????????? | | ?????# # #?????????????????????????????? | | ?????# *"#########?????????????????????????????? | | ?????# ##?????????????????????????????????????? | | ######/####??????????????????????????????????????? | | #????????????????????????????????????????? | | #????????????????????????????????????????? | | #????????????????????????????????????????? | | #????????????????????????????????????????? | | #????????????????????????????????????????? | | " """" #????????????????????????????????????????? | | " """ #????????????????????????????????????????? | | " """" #????????????????????????????????????????? | | " """" !#????##############??????????????????????? | | " """" #????# #??????????????????????? | | " """" #????# #??????????????????????? | | #????# #??????????????????????? | | +############# #??????????????????????? | | [! # ##?????????????????????? | | "" ! """" # ##????????????????????? | | "" """" # * #????????????????????? | | "" """" # =/!%! #????????????????????? | | "" """" # %/c@= #????????????????????? | | # p%=%] #????????????????????? | | ?? # / =!* #????????????????????? | | ???? #s p!% = #????????????????????? | | ######+"####;;##### = k #????????????????????? | | x%p ??????????????? | | sp ??????????????? | | h ??????????????? | | i h ???????????????? | | h """"""" ???????????????? | | ##############t### """"""" #####+??????????????? | | ???????????? ??# %""""""" #???????????????????? | | ???????????"""???# k""""""" #???????????????????? | | ?????????? ????# #???????????????????? | | ?????????????????# ?""""?? #???????????????????? | | ?????????????????# ?""""?? #???????????????????? | | ?????????????????# ??""??? #???????????????????? | | ?????????????????# ???????? #???????????????????? | | ?????????????????# ???????? #???????????????????? | | ?????????????????# ???????? ???????????????????? | | ?????????????????# ?????????? ???????????????????? | | ?????????????????? ??????????????????????????????? | | ?????????????????????????????????????????????????? | | ?????????????????????????????????????????????????? | | ?????????????????????????????????????????????????? | +----------------------------------------------------+ Best States ------------- Heat Dissipation 86 Coolant Potential 80 Energy Generation 44 Energy Capacity 905 Matter Stores 700 Matter Capacity 700 Sight Range 22 Robot Scan Range 16 Terrain Scan Density 10 ECM Strength 2 Cloak Strength 2 Power Amplification 20 Armor Coverage 900 Resistance: KI 30 Resistance: TH 25 Resistance: EX 25 Core Shielding 20 Utility Shielding 90 Evasion (%) 50 Targeting Accuracy 8 Core Analysis 6 Recoil Reduction 4 Offensive Hacking 30 Defensive Hacking 12 Trap Extractor Capacity 8 Item Schematics ----------------- Signal Interpreter | -10/Materials | Hacked Lgt. Treads | -10/Materials | Hacked Datajack | -9/Materials | Scanalyzed ECM Suite | -9/Materials | Scanalyzed Heat Sink | -9/Materials | Extracted Hvy. Hammer | -9/Materials | Extracted Transport Network Coupler | -9/Materials | Scanalyzed Hacking Suite | -9/Materials | Scanalyzed Structural Scanner | -9/Materials | Scanalyzed Hcp. Storage Unit | -9/Materials | Scanalyzed Machine Analyzer | -9/Materials | Scanalyzed Mni. Grenade Launcher | -9/Materials | Extracted Sml. Storage Unit | -9/Materials | Extracted Imp. EM Shotgun | -9/Materials | Extracted Beam Cannon | -9/Materials | Extracted Imp. Targeting Computer | -9/Materials | Extracted Field Recycling Unit | -9/Materials | Extracted Welding Torch | -9/Materials | Extracted EM Shotgun | -9/Materials | Extracted Mni. Drone Bay | -8/Materials | Scanalyzed Lgt. Regenerative Plating | -6/Data Miner | Free Enh. Armored Leg | -6/Data Miner | Free Imp. KE Penetrator | -6/Data Miner | Free Impulse Thruster | -6/Data Miner | Free Point Defense Array | -6/Data Miner | Free Adv. Datajack | -6/Data Miner | Free Imp. Remote Datajack | -6/Data Miner | Free Combat Drone Bay | -6/Data Miner | Free Imp. Matter Compressor | -6/Data Miner | Free Robot Schematics ------------------ A-15 Conveyor | -6/Data Miner | Free S-27 Virus | -6/Data Miner | Free B-48 Gladiator | -6/Data Miner | Free H-66 Slayer | -6/Data Miner | Free L-61 Swordsman | -6/Data Miner | Free Fabricated ------------ Enh. Gauss Cannon | x2 | -5/Factory | Preloaded Alien Tech Used ----------------- None Achievements -------------- None Challenges ------------ None Game ------ Seed WeaponProtonDoomcannon Manual? 0 Play Time 05:09:06 Cumulative 223.1 hours Start 2025.05.02 @ 19:40:59 End 2025.05.03 @ 11:01:33 Sessions 3 Manual Loads 0 Difficulty Rogue Special Mode None Game No. 110 Rogue 110 Adventurer 0 Explorer 0 Win Type - Total 0 Types 0/0/0/0/0/0/0/0/0 Lore% 57 Gallery% 74 Achievement% 60 Wizard Run 0 Options --------- Layout 0 ASCII 0 Keyboard 0 Movement Mouse Keybinds 0 Fullscreen 1 Font 24/Smallcaps Map View 183x50 Zoom Use 0% Tactical HUD 1 Map Filters NONE Filters NONE Steam 0 RUN: 2c0e7822-a12f-4ef8-9923-d5d79dca6162